{"text_format":"1","workbook":"xlsx","n_sheets":2,"sheets":["Solicitação de Viabilidade","Quadro de Cargas"],"not_rendered":{"charts":0,"images":1,"macros":1,"external_links":0,"defined_names":12,"comments":2,"pivot_tables":0},"unopened":[],"bounds":{"document_bytes":16777216,"sheet_cells":100000,"rows_first":2000,"rows_last":500,"rows_between":2000,"halvings":0,"cell_chars":16384,"cell_head_chars":4096},"cells_cut":0,"cells_raw":0,"read":"whole","date_system":"1900"}

{"sheet":"Solicitação de Viabilidade","index":0,"n_rows":82,"n_cols":36,"rows_kept":82,"cut":false,"hidden":false,"merged":[[22,22,22,30],[45,17,45,26],[44,17,44,26],[63,2,63,30],[61,2,61,30],[36,2,36,30],[47,2,47,15],[47,17,47,22],[47,24,47,30],[49,2,49,15],[49,17,49,22],[49,24,49,30],[42,2,42,15],[42,17,42,22],[42,24,42,30],[44,2,44,15],[45,2,45,15],[39,2,39,15],[39,17,39,22],[41,2,41,15],[41,17,41,22],[51,16,51,25],[51,26,51,30],[53,2,53,8],[59,9,59,13],[59,16,59,24],[59,25,59,29],[57,2,57,8],[57,9,57,14],[51,2,51,9],[51,10,51,14],[53,16,53,24],[53,25,53,29],[55,9,55,14],[57,16,57,23],[57,24,57,30],[55,16,55,20],[55,2,55,8],[53,9,53,14],[59,2,59,8],[105,22,105,26],[106,3,106,11],[64,2,64,30],[68,2,78,12],[68,14,70,30],[71,17,72,21],[71,23,72,26],[73,17,73,21],[73,23,73,26],[75,17,76,26],[77,19,77,24],[66,2,66,30],[2,5,4,30],[6,2,6,30],[8,2,8,15],[12,2,12,15],[14,3,14,4],[14,6,14,8],[14,9,14,15],[9,2,9,15],[11,2,11,15],[12,17,12,19],[14,17,14,21],[14,22,14,30],[9,17,9,19],[9,20,9,30],[11,17,11,19],[11,20,11,30],[12,20,12,30],[45,27,45,30],[44,27,44,30],[55,21,55,30],[27,2,27,30],[29,2,29,10],[29,12,29,19],[29,22,29,30],[30,2,30,10],[30,12,30,19],[30,22,30,23],[30,24,30,28],[32,2,32,10],[41,24,41,30],[33,2,33,10],[33,12,33,17],[33,19,33,23],[33,25,33,30],[38,2,38,15],[38,17,38,22],[32,12,32,17],[32,19,32,23],[32,25,32,30],[38,24,38,30],[39,24,39,30],[25,12,25,17],[21,2,21,10],[21,22,21,30],[22,2,22,10],[24,2,24,10],[24,12,24,17],[24,19,24,23],[24,25,24,30],[8,17,8,19],[8,20,8,30],[16,2,16,15],[16,17,16,22],[16,24,16,30],[17,2,17,15],[17,17,17,22],[17,24,17,30],[19,2,19,30],[25,2,25,10],[25,19,25,23],[25,25,25,30],[21,12,21,17],[22,12,22,17],[21,19,21,21],[22,19,22,21]]}
[]
[null,null,null,null,null,null,null,null,null,null,null,null,null,null,null,null,null,null,null,null,null,null,null,null,null,null,null,null,null,null,null,null,null,null,"PROVISÓRIO"]
[null,null,null,null,null,"ANEXO I - SOLICITAÇÃO DE VIABILIDADE TÉCNICA\nPrencher obrigatoriamente todos os campos em cor vermelha",null,null,null,null,null,null,null,null,null,null,null,null,null,null,null,null,null,null,null,null,null,null,null,null,null,null,null,null,"PERMANENTE"]
[]
[]
[]
[null,null,"1. Identificação e Dados Cadastrais do Poder Público Municipal - PREENCHER, OBRIGATORIAMENTE, TODOS OS CAMPOS COM (*)"]
[]
[null,null,"Razão Social (Titular da Unidade Consumidora) (*)",null,null,null,null,null,null,null,null,null,null,null,null,null,null,"CNPJ(*)"]
[null,null,null,null,null,null,null,null,null,null,null,null,null,null,null,null,null,"E-mail(*)",null,null,null,null,null,null,null,null,null,null,null,null,null,null,null,null,null,"Residencial"]
[null,null,null,null,null,null,null,null,null,null,null,null,null,null,null,null,null,null,null,null,null,null,null,null,null,null,null,null,null,null,null,null,null,null,null,"Rural"]
[null,null,"Endereço Completo (*)",null,null,null,null,null,null,null,null,null,null,null,null,null,null,"Telefone:(*)",null,null,null,null,null,null,null,null,null,null,null,null,null,null,null,null,null,"Poder Público"]
[null,null,null,null,null,null,null,null,null,null,null,null,null,null,null,null,null,"Celular:",null,null,null,null,null,null,null,null,null,null,null,null,null,null,null,null,null,"Iluminação Pública"]
[null,null,null,null,null,null,null,null,null,null,null,null,null,null,null,null,null,null,null,null,null,null,null,null,null,null,null,null,null,null,null,null,null,null,null,"Serviço Público"]
[null,null,"CEP(*)",null,null,null,"Munícipio/UF(*)",null,null,null,null,null,null,null,null,null,null,"Nome e Contato de Emergência(*)",null,null,null,null,null,null,null,null,null,null,null,null,null,null,null,null,null,"Industrial"]
[null,null,null,null,null,null,null,null,null,null,null,null,null,null,null,null,null,null,null,null,null,null,null,null,null,null,null,null,null,null,null,null,null,null,null,"Comercial, Serviços e outras atividades"]
[null,null,"Nome do Responsável Legal",null,null,null,null,null,null,null,null,null,null,null,null,null,null,"Telefone do Responsável Legal",null,null,null,null,null,null,"E-mail do Responsável Legal"]
[]
[null,null,null,null,null,null,null,null,null,null,null,null,null,null,null,null,null,null,null,null,null,null,null,null,null,null,null,null,null,null,null,null,null,null,null,"13,8 kV"]
[null,null,"2. Dados Cadastrais da Empresa responsável para prestar o serviço público de Iluminação Pública - PREENCHER QUANDO APLICÁVEL",null,null,null,null,null,null,null,null,null,null,null,null,null,null,null,null,null,null,null,null,null,null,null,null,null,null,null,null,null,null,null,null,"34,5 kV"]
[]
[null,null,"Nome Completo/ Razão Social (*)",null,null,null,null,null,null,null,null,null,"CPF/CNPJ",null,null,null,null,null,null,"E-mail (*)"]
[null,null,null,null,null,null,null,null,null,null,null,null,null,null,null,null,null,null,null,"Telefone (*)"]
[]
[null,null,"Nome do Responsável Legal",null,null,null,null,null,null,null,null,null,"Telefone do Responsável Legal",null,null,null,null,null,null,"Celular(*)",null,null,null,null,null,"Nome e Contato de emergência (*)",null,null,null,null,null,null,null,null,null,"Optante B"]
[null,null,null,null,null,null,null,null,null,null,null,null,null,null,null,null,null,null,null,null,null,null,null,null,null,null,null,null,null,null,null,null,null,null,null,"Horária Verde"]
[]
[null,null,"3. Dados Cadastrais do Responsável Técnico - PREENCHER, OBRIGATORIAMENTE, TODOS OS CAMPOS COM (*)",null,null,null,null,null,null,null,null,null,null,null,null,null,null,null,null,null,null,null,null,null,null,null,null,null,null,null,null,null,null,null,null,"34,5 kV"]
[]
[null,null,"Nome Completo (*)",null,null,null,null,null,null,null,null,null,"Titulo Profissional",null,null,null,null,null,null,null,null,null,"Registro Profissional (*)"]
[null,null,null,null,null,null,null,null,null,null,null,null,null,null,null,null,null,null,null,null,null,null,"Nº",null,null,null,null,null,null,"UF:"]
[]
[null,null,"E-mail do Responsável Técnico (*)",null,null,null,null,null,null,null,null,null,"CPF(*)",null,null,null,null,null,null,"Telefone (*)",null,null,null,null,null,"Celular (*)",null,null,null,null,null,null,null,null,null,"Optante B"]
[null,null,null,null,null,null,null,null,null,null,null,null,null,null,null,null,null,null,null,null,null,null,null,null,null,null,null,null,null,null,null,null,null,null,null,"Horária Verde"]
[null,null,null,null,null,null,null,null,null,null,null,null,null,null,null,null,null,null,null,null,null,null,null,null,null,null,null,null,null,null,null,null,null,null,null,"Horária Azul"]
[null,null,null,null,null,null,null,null,null,null,null,null,null,null,null,null,null,null,null,null,null,null,null,null,null,null,null,null,null,null,null,null,null,null,null,"LIGAÇÃO NOVA"]
[null,null,"4. Dados Técnicos e de Localização do Serviço de Iluminação Pública - PREENCHER, OBRIGATORIAMENTE, TODOS OS CAMPOS COM (*)",null,null,null,null,null,null,null,null,null,null,null,null,null,null,null,null,null,null,null,null,null,null,null,null,null,null,null,null,null,null,null,null,"AUMENTO DE CARGA"]
[]
[null,null,"Descrição da obra (*)",null,null,null,null,null,null,null,null,null,null,null,null,null,null,"Nº Conta Contrato (Se houver)",null,null,null,null,null,null,"Código do Poste de Derivação (*)"]
[]
[]
[null,null,"Endereço Completo (*)",null,null,null,null,null,null,null,null,null,null,null,null,null,null,"Localidade/Bairro (*)  ",null,null,null,null,null,null,"CEP (*)"]
[]
[null,null,null,null,null,null,null,null,null,null,null,null,null,null,null,null,null,null,null,null,null,null,null,null,null,null,null,null,null,null,null,null,null,null,null,"EXCLUSIVO"]
[null,null,"Ponto de referência",null,null,null,null,null,null,null,null,null,null,null,null,null,null,"Munícipio (*)",null,null,null,null,null,null,null,null,null,"UF (*)",null,null,null,null,null,null,null,"PONTO A PONTO"]
[]
[]
[null,null,"Coordenadas do Posto de Transformação",null,null,null,null,null,null,null,null,null,null,null,null,null,"X = ",null,null,null,null,null,null,"Y =",null,null,null,null,null,null,null,null,null,null,null,"MONOFÁSICO"]
[null,null,null,null,null,null,null,null,null,null,null,null,null,null,null,null,null,null,null,null,null,null,null,null,null,null,null,null,null,null,null,null,null,null,null,"BIFÁSICO"]
[null,null,"Coordenadas da Derivação da Rede de Distribuição",null,null,null,null,null,null,null,null,null,null,null,null,null,"X = ",null,null,null,null,null,null,"Y =",null,null,null,null,null,null,null,null,null,null,null,"TRIFÁSICO"]
[null,null,null,null,null,null,null,null,null,null,null,null,null,null,null,null,null,null,null,null,null,null,null,null,null,null,null,null,null,null,null,null,null,null,null,"REDE NUA"]
[null,null,"Previsão de Conclusão da Obra (Mês/Ano) (*)",null,null,null,null,null,null,null,null,null,null,null,null,null,"Previsão de Ligação Carga (Mês/Ano) (*)",null,null,null,null,null,null,null,null,null,null,null,null,null,null,null,null,null,null,"REDE MULTIPLEXADA"]
[]
[null,null,"Tipo de Conexão (*) (selecione)",null,null,null,null,null,null,null,null,null,null,null,null,null,"Carga em Transformadores (*)",null,null,null,null,null,null,null,null,null,null,null,null,null,"kVA",null,null,null,null,"REDE NUA"]
[]
[null,null,"Tipo do Circuito (*) (selecione)",null,null,null,null,null,null,null,null,null,null,null,null,null,"Tipologia da rede (*) (selecione)"]
[]
[null,null,"Tipo do Fornecimento (*) (selecione)",null,null,null,null,null,null,null,null,null,null,null,null,null,"Tensão de Distribuição Secundária (*)"]
[]
[null,null,"Demanda Prevista (*)",null,null,null,null,null,null,null,null,null,null,null,"kVA",null,"Carga instalada (*)",null,null,null,null,null,null,null,null,null,null,null,null,null,"kW"]
[]
[null,null,"5. Documentos necessários que devem ser anexados à Solicitação:"]
[]
[null,null,"Descrição"]
[null,null,"Consultar o item 6.2. da norma de iluminação pública (NDU 035) em sua ultima versão."]
[]
[null,null,"6. Este formulário deve ser preenchido e encaminhado aos canais de atendimento da distribuidora do Grupo Energisa"]
[]
[null,null,"Em caso de dúvidas sobre o processo de Iluminação Pública, entre em contato através dos canais de atendimento :\n\nEnergisa Acre - poderpublico.eac@energisa.com.br\nEnergisa Borborema - poderpublico.centro@energisa.com.br\nEnergisa Minas Gerais - poderpublicoemg@energisa.com.br\nEnergisa Mato Grosso do Sul - poderpublico.ems@energisa.com.br\nEnergisa Mato Grosso - atendimento.poderpublico@energisa.com.br\nEnergisa Nova Friburgo - poderpublicoenf@energisa.com.br\nEnergisa Paraíba - poderpublico.leste@energisa.com.br / poderpublicooeste@energisa.com.br\nEnergisa Rondônia - poderpublico.ero@energisa.com.br\nEnergisa Sergipe - poderpublico.ese@energisa.com.br\nEnergisa Sul-Sudeste - poderpublico.ess@energisa.com.br\nEnergisa Tocantins - grupoapoderpublico.eto@energisa.com.br\n",null,null,null,null,null,null,null,null,null,null,null,"Eu, solicitante identificado neste formulário, venho por meio deste instrumento, solicitar o estudo de viabilidade técnica, fornecendo meus dados cadastrais assim como as documentações necessárias."]
[]
[]
[]
[]
[null,null,null,null,null,null,null,null,null,null,null,null,null,null,null,null,null,"Local",null,null,null,null,null,"Data"]
[]
[]
[]
[null,null,null,null,null,null,null,null,null,null,null,null,null,null,null,null,null,null,null,"Assinatura do Responsável Legal"]
[]
[]
[null,"GTD/CNPC - Coordenação de Normas e Padrões Construtivos"]
[null,"NDU 035 - Versão 1.0"]

{"sheet":"Quadro de Cargas","index":1,"n_rows":60,"n_cols":11,"rows_kept":60,"cut":false,"hidden":false,"merged":[[59,0,59,10],[0,0,0,10],[1,0,1,8],[55,0,55,3],[56,0,56,3],[57,0,57,3],[57,6,58,10],[58,0,58,3]]}
["QUADRO DE CARGAS PARA CÁLCULO PRELIMINAR DA CARGA INSTALADA E DA DEMANDA ¹"]
["OBS: Preencher somente campos em branco"]
["Item","Descrição","Georede do Poste","Coordenada UTXM-X","Coordenada UTXM-Y","Potência (kW)","FP","Carga Instalada (kVA)","FD","Demanda (kW)","Demanda (kVA)"]
[1,null,null,null,null,null,null,{"$f":"IF(G4=\"\",\"\",F4/G4)","v":""},null,{"$f":"IF(I4=\"\",\"\",F4*I4)","v":""},{"$f":"IF(I4=\"\",\"\",H4*I4)","v":""}]
[2,null,null,null,null,null,null,{"$f":"IF(G5=\"\",\"\",F5/G5)","v":""},null,{"$f":"IF(I5=\"\",\"\",F5*I5)","v":""},{"$f":"IF(I5=\"\",\"\",H5*I5)","v":""}]
[3,null,null,null,null,null,null,"",null,"",""]
[4,null,null,null,null,null,null,"",null,"",""]
[5,null,null,null,null,null,null,"",null,"",""]
[6,null,null,null,null,null,null,"",null,"",""]
[7,null,null,null,null,null,null,"",null,"",""]
[8,null,null,null,null,null,null,"",null,"",""]
[9,null,null,null,null,null,null,"",null,"",""]
[10,null,null,null,null,null,null,"",null,"",""]
[11,null,null,null,null,null,null,"",null,"",""]
[12,null,null,null,null,null,null,"",null,"",""]
[13,null,null,null,null,null,null,"",null,"",""]
[14,null,null,null,null,null,null,"",null,"",""]
[15,null,null,null,null,null,null,"",null,"",""]
[16,null,null,null,null,null,null,"",null,"",""]
[17,null,null,null,null,null,null,"",null,"",""]
[18,null,null,null,null,null,null,"",null,"",""]
[19,null,null,null,null,null,null,"",null,"",""]
[20,null,null,null,null,null,null,"",null,"",""]
[21,null,null,null,null,null,null,"",null,"",""]
[22,null,null,null,null,null,null,"",null,"",""]
[23,null,null,null,null,null,null,"",null,"",""]
[24,null,null,null,null,null,null,"",null,"",""]
[25,null,null,null,null,null,null,"",null,"",""]
[26,null,null,null,null,null,null,"",null,"",""]
[27,null,null,null,null,null,null,"",null,"",""]
[28,null,null,null,null,null,null,"",null,"",""]
[29,null,null,null,null,null,null,"",null,"",""]
[30,null,null,null,null,null,null,"",null,"",""]
[31,null,null,null,null,null,null,"",null,"",""]
[32,null,null,null,null,null,null,"",null,"",""]
[33,null,null,null,null,null,null,"",null,"",""]
[34,null,null,null,null,null,null,"",null,"",""]
[35,null,null,null,null,null,null,"",null,"",""]
[36,null,null,null,null,null,null,"",null,"",""]
[37,null,null,null,null,null,null,"",null,"",""]
[38,null,null,null,null,null,null,"",null,"",""]
[39,null,null,null,null,null,null,"",null,"",""]
[40,null,null,null,null,null,null,"",null,"",""]
[41,null,null,null,null,null,null,"",null,"",""]
[42,null,null,null,null,null,null,"",null,"",""]
[43,null,null,null,null,null,null,"",null,"",""]
[44,null,null,null,null,null,null,"",null,"",""]
[45,null,null,null,null,null,null,"",null,"",""]
[46,null,null,null,null,null,null,"",null,"",""]
[47,null,null,null,null,null,null,"",null,"",""]
[48,null,null,null,null,null,null,{"$f":"IF(G51=\"\",\"\",F51/G51)","v":""},null,{"$f":"IF(I51=\"\",\"\",F51*I51)","v":""},{"$f":"IF(I51=\"\",\"\",H51*I51)","v":""}]
[49,null,null,null,null,null,null,{"$f":"IF(G52=\"\",\"\",F52/G52)","v":""},null,{"$f":"IF(I52=\"\",\"\",F52*I52)","v":""},{"$f":"IF(I52=\"\",\"\",H52*I52)","v":""}]
[50,null,null,null,null,null,null,{"$f":"IF(G53=\"\",\"\",F53/G53)","v":""},null,{"$f":"IF(I53=\"\",\"\",F53*I53)","v":""},{"$f":"IF(I53=\"\",\"\",H53*I53)","v":""}]
[51,null,null,null,null,null,null,{"$f":"IF(G54=\"\",\"\",F54/G54)","v":""},null,{"$f":"IF(I54=\"\",\"\",F54*I54)","v":""},{"$f":"IF(I54=\"\",\"\",H54*I54)","v":""}]
[]
["TOTAL",null,null,null,null,{"$f":"SUM(F4:F50)","v":0},null,{"$f":"SUM(H4:H50)","v":0},null,{"$f":"SUM(J4:J50)","v":0},{"$f":"SUM(K4:K50)","v":0}]
["FATOR DE DEMANDA DA ATIVIDADE"]
["FATOR DE POTÊNCIA DE REFERÊNCIA",null,null,null,null,0.92]
["FATOR DE POTÊNCIA MÉDIO DA INSTALAÇÃO ",null,null,null,null,{"$f":"IFERROR(F56/H56,\" \")","v":" "}]
["¹ Os cálculos definitivos devem seguir conforme projeto elétrico realizado por profissional devidamente habilitado."]